bitfinex/quotes_ETHUSD_20250827
["timestamp","ask_amount","ask_price","bid_price","bid_amount"]
[1756319187557,12.12286143,4635.1,4635.0,0.3806]
[1756319189053,11.22286143,4635.1,4635.0,0.3806]
[1756319189242,11.22286143,4635.1,4635.0,0.201]
[1756319189662,12.30396143,4635.1,4635.0,0.201]
[1756319189878,12.41196143,4635.1,4635.0,0.201]
[1756319190951,12.12286143,4635.1,4635.0,0.3806]
[1756319191244,10.60931218,4635.1,4635.0,0.201]
[1756319191451,12.12286143,4635.1,4635.0,0.201]
[1756319192944,12.12286143,4635.1,4635.0,0.3806]
[1756319193653,11.22286143,4635.1,4635.0,0.3806]
[1756319193951,11.22286143,4635.1,4635.0,0.201]
[1756319194354,17.91531218,4635.1,4635.0,0.201]
[1756319194585,19.68231218,4635.1,4635.0,0.201]
[1756319195686,0.50986144,4635.1,4635.0,0.3806]
[1756319195904,0.002,4635.5,4635.4,2.15731112]
[1756319196059,0.002,4635.5,4635.4,2.66494223]
[1756319196261,0.002,4635.5,4635.4,2.77294223]
[1756319197175,0.002,4635.5,4635.4,2.66064223]
[1756319197769,0.002,4635.5,4635.4,0.108]
[1756319197982,2.15731399,4635.4,4635.0,0.201]
[1756319198192,4.33619239,4635.3,4635.0,0.201]
[1756319198392,0.20129239,4635.2,4635.0,0.201]
[1756319199013,3.681,4635.3,4635.1,0.1796]
[1756319199311,0.20121524,4635.2,4635.1,0.1796]
[1756319199457,0.20121509,4635.3,4635.0,0.201]
[1756319199656,4.423,4635.2,4635.0,0.201]
[1756319199905,0.20121529,4635.1,4635.0,0.201]
[1756319200191,3.60456604,4635.1,4635.0,0.201]
[1756319200360,4.09486837,4635.1,4635.0,0.201]
[1756319200561,8.22986479,4635.1,4635.0,0.201]
[1756319200788,6.07241404,4635.1,4635.0,0.201]
[1756319200960,7.20286837,4635.1,4635.0,0.201]
[1756319201603,10.88386837,4635.1,4635.0,0.201]
[1756319202409,7.98141762,4635.1,4635.0,0.201]
[1756319202753,10.88186837,4635.1,4635.0,0.201]
[1756319205207,18.03186836,4635.1,4635.0,0.201]
[1756319206560,17.62945074,4635.1,4635.0,0.201]
[1756319206801,18.41165817,4635.1,4635.0,0.201]
[1756319207003,18.69986789,4635.1,4635.0,0.201]
[1756319207206,18.69979124,4635.1,4635.0,0.201]
[1756319207369,18.49859911,4635.1,4635.0,0.201]
[1756319207577,18.6997147,4635.1,4635.0,0.201]
[1756319208403,18.41150498,4635.1,4635.0,0.201]
[1756319208696,18.1393457,4635.1,4635.0,0.201]
[1756319209505,14.35268176,4635.1,4635.0,0.201]
[1756319209805,18.02768176,4635.1,4635.0,0.201]
[1756319211009,14.46037401,4635.1,4635.0,0.201]
[1756319211209,18.02768176,4635.1,4635.0,0.201]
[1756319211410,17.10958176,4635.1,4635.0,0.201]
[1756319211607,17.21758176,4635.1,4635.0,0.201]
[1756319211812,17.21858176,4635.1,4635.0,0.201]
[1756319211962,18.01058176,4635.1,4635.0,0.201]
[1756319213166,18.00958176,4635.1,4635.0,0.201]
[1756319213593,14.33558176,4635.1,4635.0,0.201]
[1756319213911,18.00958176,4635.1,4635.0,0.201]
[1756319214284,14.33558176,4635.1,4635.0,0.201]
[1756319214692,18.00858176,4635.1,4635.0,0.201]
[1756319215315,13.60968176,4635.1,4635.0,0.201]
[1756319215518,18.00718176,4635.1,4635.0,0.201]
[1756319216368,14.33418176,4635.1,4635.0,0.201]
[1756319216569,18.00618176,4635.1,4635.0,0.201]
[1756319216873,17.80506633,4635.1,4635.0,0.201]
[1756319217085,18.00570356,4635.1,4635.0,0.201]
[1756319218677,18.27786284,4635.1,4635.0,0.201]
[1756319221203,2.94954385,4634.9,4634.5,0.001]
[1756319221439,2.94954385,4634.9,4632.8,0.02]
[1756319221440,2.95000945,4633.9,4632.8,0.02]
[1756319221731,19.20846226,4633.9,4632.8,0.02]
[1756319221937,18.92076226,4633.9,4633.8,0.1996]
[1756319222139,18.92076226,4633.9,4633.8,0.02]
[1756319222695,10.63875281,4633.9,4633.8,0.1996]
[1756319222897,14.1098764,4633.9,4633.8,0.3119]
[1756319223096,17.26061784,4633.9,4633.8,0.02]
[1756319223321,17.54831784,4633.9,4633.8,0.02]
[1756319223810,17.26061784,4633.9,4633.8,0.02]
[1756319224020,17.26061784,4633.9,4633.8,0.1996]
[1756319224193,13.58861784,4633.9,4633.8,0.1996]
[1756319224695,11.43060839,4633.9,4633.8,0.1996]
[1756319224891,15.10260839,4633.9,4633.8,0.1996]
[1756319225489,14.1098764,4633.9,4633.8,0.1996]
[1756319225692,14.0018764,4633.9,4633.8,0.1996]
[1756319226342,15.95900944,4633.9,4633.8,0.1996]
[1756319226499,16.15980633,4633.9,4633.8,0.1996]
[1756319227021,16.15991376,4633.9,4633.8,0.1996]
[1756319227398,14.20294849,4633.9,4633.8,0.1996]
[1756319227734,16.15991376,4633.9,4633.8,0.1996]
[1756319227918,14.00190431,4633.9,4633.8,0.1996]
[1756319228429,10.32990431,4633.9,4633.8,0.1996]
[1756319228727,14.00190431,4633.9,4633.8,0.3119]
[1756319229926,14.00190431,4633.9,4633.8,0.1996]
[1756319230329,10.32990431,4633.9,4633.8,0.55890854]
[1756319230526,10.32990431,4633.9,4633.8,2.46995602]
[1756319231028,10.32990431,4633.9,4633.8,2.57795602]
[1756319231459,10.32990431,4633.9,4633.8,0.4199]
[1756319231646,10.32990431,4633.9,4633.8,0.3076]
[1756319232426,13.21241376,4633.9,4633.8,0.02]
[1756319233342,10.32990431,4633.9,4633.8,0.1996]
[1756319233550,16.15991376,4633.9,4633.8,0.02]
[1756319233722,14.00190431,4633.9,4633.8,0.02]
[1756319233931,14.20331781,4633.9,4633.8,0.02]
[1756319234439,10.53131781,4633.9,4633.8,0.021]
[1756319234759,14.20331781,4633.9,4633.8,0.021]
[1756319235759,10.53131781,4633.9,4633.8,0.2006]
[1756319235964,14.20331781,4633.9,4633.8,0.2006]
[1756319236631,14.00190431,4633.9,4633.8,0.2006]
[1756319236835,14.20416581,4633.9,4633.8,0.2006]
[1756319237472,10.53216581,4633.9,4633.8,0.2006]
[1756319237774,14.20416581,4633.9,4633.8,0.2006]
[1756319237930,7.53216581,4633.9,4633.8,0.3129]
[1756319238127,0.20158298,4633.9,4633.8,2.82606]
[1756319238327,0.201587,4633.9,4633.8,0.55570398]
[1756319238567,3.873587,4634.3,4633.8,0.3086]
[1756319238877,5.15791737,4634.1,4633.8,0.129]
[1756319239177,6.23313916,4634.0,4633.8,0.129]
[1756319239331,0.40316313,4633.9,4633.8,0.021]
[1756319239672,4.07516313,4633.9,4633.8,0.021]
[1756319240264,6.23317258,4633.9,4633.8,0.021]
[1756319240566,4.07516313,4633.9,4633.8,0.021]
[1756319240878,0.40316313,4633.9,4633.8,0.2006]
[1756319241955,0.40316313,4633.9,4633.8,2.35865602]
[1756319242159,0.201587,4633.9,4633.8,0.3086]
[1756319242637,0.201587,4633.9,4633.8,2.46665602]
[1756319242837,0.201587,4633.9,4633.8,0.3086]
[1756319243166,0.980787,4633.9,4633.8,0.129]
[1756319243346,1.18235709,4633.9,4633.8,0.021]
[1756319243732,0.71084554,4633.9,4633.8,0.021]
[1756319243932,1.18234554,4633.9,4633.8,0.021]
[1756319244451,11.98234553,4633.9,4633.8,0.021]
[1756319244649,8.31134553,4633.9,4633.8,0.021]
[1756319245266,11.20314553,4633.9,4633.8,0.021]
[1756319245772,7.53214553,4633.9,4633.8,0.021]
[1756319246067,7.33057271,4633.9,4633.8,2.58736619]
[1756319246270,7.33057271,4633.9,4633.8,2.69536619]
[1756319247065,7.12899999,4633.9,4633.8,2.69536619]
[1756319247277,7.33059665,4633.9,4633.8,2.69536619]
[1756319248267,7.12899999,4633.9,4633.8,2.69536619]
[1756319248575,3.673,4634.5,4633.8,0.64961017]
[1756319248752,0.40313596,4634.4,4633.8,0.64961017]
[1756319248948,0.20156798,4634.3,4633.8,0.53731017]
[1756319249152,0.20156798,4634.2,4633.9,2.15800945]
[1756319249476,0.20156798,4634.1,4633.9,2.42754141]
[1756319249665,0.20156798,4634.0,4633.9,2.42754141]
[1756319249860,0.20154897,4634.4,4634.2,2.15783453]
[1756319250072,0.20154914,4634.3,4634.2,2.15786975]
[1756319250274,0.20153528,4634.4,4634.3,2.15782318]
[1756319250455,0.20153557,4634.4,4634.3,2.33742318]
[1756319250653,0.20153553,4634.4,4634.3,2.33742318]
[1756319250852,0.002,4634.5,4634.3,2.33742318]
[1756319251048,0.98073553,4634.4,4634.2,0.108]
[1756319251375,0.20153553,4634.3,4634.2,0.108]
[1756319251738,0.20153553,4634.3,4634.2,2.26586975]
[1756319252159,0.002,4634.5,4634.4,2.15777662]
[1756319252357,0.40500686,4634.5,4634.4,2.15777662]
[1756319252675,0.40500686,4634.5,4634.2,0.2876]
[1756319252676,0.40500686,4634.5,4634.3,2.15781486]
[1756319252837,0.2015081,4634.4,4634.2,0.108]
[1756319253287,0.2015081,4634.4,4634.2,2.26585941]
[1756319253583,0.2015081,4634.4,4634.2,0.108]
[1756319253946,0.002,4634.5,4634.3,2.15782318]
[1756319254149,0.2015255,4634.4,4634.3,2.15782318]
[1756319254345,0.2015255,4634.4,4634.3,2.33742318]
[1756319254746,0.002,4634.5,4634.4,2.15777662]
[1756319255275,0.20355758,4634.5,4634.4,2.15777662]
[1756319255487,0.20355758,4634.5,4634.4,2.77974105]
[1756319255846,0.002,4634.5,4634.4,2.77974105]
[1756319257776,0.002,4634.5,4634.2,0.108]
[1756319257942,0.4715,4634.4,4634.2,0.108]
[1756319258142,0.7792,4634.3,4634.2,2.26586975]
[1756319258377,0.7792,4634.3,4634.2,0.108]
[1756319258981,0.7792,4634.3,4634.2,2.26586975]
[1756319259361,0.7792,4634.3,4634.2,0.108]
[1756319260977,0.002,4634.5,4634.3,2.15782318]
[1756319261179,0.002,4634.5,4634.2,0.2876]
[1756319261383,0.3077,4634.3,4634.2,0.108]
[1756319261581,0.4715,4634.4,4634.2,0.108]
[1756319261879,0.7792,4634.3,4634.2,0.108]
[1756319262896,0.7792,4634.3,4634.0,0.108]
[1756319263186,0.4715,4634.2,4634.0,0.108]
[1756319263687,0.7792,4634.1,4634.0,0.108]
[1756319265088,0.7792,4634.1,4634.0,2.26596288]
[1756319265455,0.002,4634.5,4634.0,0.108]
[1756319265651,0.002,4634.5,4634.4,2.15777662]
[1756319265854,0.4735,4634.5,4634.3,0.108]
[1756319266083,0.002,4634.5,4634.3,0.108]
[1756319266384,0.7792,4634.4,4634.3,0.108]
[1756319267201,0.7792,4634.4,4633.9,2.15800945]
[1756319267354,0.4566,4634.3,4634.0,2.15795656]
[1756319267561,0.4566,4634.3,4633.8,2.17904513]
[1756319267902,0.4566,4634.3,4634.2,2.15786975]
[1756319268057,0.002,4634.5,4634.2,2.15786975]
[1756319268259,0.002,4634.5,4634.1,2.15790529]
[1756319268458,0.4566,4634.4,4634.1,2.15790529]
[1756319268659,0.3007,4634.2,4634.0,0.108]
[1756319268890,0.4566,4634.1,4634.0,0.108]
[1756319269400,0.7573,4634.1,4634.0,0.108]
[1756319269692,0.7573,4634.1,4633.8,0.021]
[1756319269879,2.15796874,4634.0,4633.8,0.021]
[1756319270083,10.07900944,4633.9,4633.8,0.021]
[1756319270317,8.78629999,4633.9,4633.8,0.021]
[1756319270666,10.94430944,4633.9,4633.8,0.021]
[1756319270970,8.78629999,4633.9,4633.8,0.021]
[1756319271176,9.7223828,4633.9,4633.8,0.021]
[1756319273001,15.08204097,4633.9,4633.8,0.021]
[1756319278100,18.75204097,4633.9,4633.8,0.021]
[1756319278306,18.55039225,4633.9,4633.8,0.021]
[1756319278513,18.75179068,4633.9,4633.8,0.021]
[1756319279084,19.02394996,4633.9,4633.8,0.021]
[1756319279606,19.11050396,4633.9,4633.8,0.021]
[1756319280400,19.11050396,4633.9,4633.3,0.001]
[1756319280401,2.95024232,4633.4,4633.3,0.001]
[1756319280600,18.98462326,4633.4,4633.3,0.001]
[1756319280909,19.74192326,4633.4,4633.3,0.001]
[1756319281215,20.07982553,4633.4,4633.3,0.001]
[1756319284124,13.97942393,4633.4,4633.3,0.001]
[1756319284414,12.56699999,4633.4,4633.3,0.1806]
[1756319284589,16.35899999,4633.4,4633.3,0.001]
[1756319284911,18.71828028,4633.4,4633.3,0.001]
[1756319285234,19.47558028,4633.4,4633.3,0.001]
[1756319285522,18.51724231,4633.4,4633.3,0.001]
[1756319286040,18.81794231,4633.4,4633.3,0.001]
[1756319286237,19.47555681,4633.4,4633.3,0.001]
[1756319286540,19.74771609,4633.4,4633.3,0.001]
[1756319286876,19.47555681,4633.4,4633.3,0.001]
[1756319287080,15.80555681,4633.4,4633.3,0.001]
[1756319287382,26.59838004,4633.4,4633.3,0.001]
[1756319287576,22.92838004,4633.4,4633.3,0.001]
[1756319287782,22.92827519,4633.4,4633.3,0.001]
[1756319288015,23.05627519,4633.4,4633.3,0.001]
[1756319288614,26.79752482,4633.4,4633.3,0.001]
[1756319288810,26.99840832,4633.4,4633.3,0.001]
[1756319289235,26.72624904,4633.4,4633.3,0.001]
[1756319290012,2.95047525,4632.9,4632.8,0.021]
[1756319290334,24.18118197,4632.9,4632.8,0.021]
[1756319290486,24.48188197,4632.9,4632.8,0.021]
[1756319290688,25.36297802,4632.9,4632.8,0.021]
[1756319290939,21.69297802,4632.9,4632.8,0.021]
[1756319291235,25.36297802,4632.9,4632.8,0.021]
[1756319293633,21.69297802,4632.9,4632.8,0.021]
[1756319293799,25.36297802,4632.9,4632.8,0.021]
[1756319294336,21.69297802,4632.9,4632.8,0.021]
[1756319294534,25.36297802,4632.9,4632.8,0.021]
[1756319295606,21.69297802,4632.9,4632.8,0.021]
[1756319295947,25.36297802,4632.9,4632.8,0.021]
[1756319297703,14.57015479,4632.9,4632.8,0.021]
[1756319297903,18.24015479,4632.9,4632.8,0.021]
[1756319298149,14.57015479,4632.9,4632.8,0.021]
[1756319298315,25.63521514,4632.9,4632.8,0.021]
[1756319298705,25.36305586,4632.9,4632.8,0.021]
[1756319298905,21.69304717,4632.9,4632.8,0.021]
[1756319299106,25.36304717,4632.9,4632.8,0.021]
[1756319301369,25.63520645,4632.9,4632.8,0.021]
[1756319304235,25.36304717,4632.9,4632.8,0.021]
[1756319304931,25.63520645,4632.9,4632.8,0.021]
[1756319305547,0.792,4632.6,4632.3,0.001]
[1756319305871,0.792,4632.2,4631.8,0.021]
[1756319306077,0.792,4631.3,4630.8,0.02]
[1756319306228,10.18223068,4630.9,4630.8,0.02]
[1756319306427,17.05218333,4630.9,4630.8,0.02]
[1756319306660,17.05218333,4630.9,4630.8,0.1996]
[1756319306826,13.38318333,4630.9,4630.8,0.1996]
[1756319307023,9.9293601,4630.9,4630.8,0.1996]
[1756319307357,10.8634601,4630.9,4630.8,0.02]
[1756319307931,7.1944601,4630.9,4630.8,0.02]
[1756319308126,6.4599601,4630.9,4630.8,0.02]
[1756319308375,9.9293601,4630.9,4630.8,0.1996]
[1756319308576,9.72840745,4630.9,4630.8,0.1996]
[1756319308744,9.9294088,4630.9,4630.8,0.1996]
[1756319309131,10.2144088,4630.9,4630.8,0.02]
[1756319309330,10.66392666,4630.9,4630.8,0.02]
[1756319309566,17.78674989,4630.9,4630.8,0.02]
[1756319310469,18.05890917,4630.9,4630.8,0.02]
[1756319311266,14.38990917,4630.9,4630.8,0.02]
[1756319311449,17.78774989,4630.9,4630.8,0.02]
[1756319311770,17.05324989,4630.9,4630.8,0.02]
[1756319311951,9.93042666,4630.9,4630.8,0.1996]
[1756319312154,6.26042666,4630.9,4630.8,0.1996]
[1756319312364,9.93042666,4630.9,4630.8,0.1996]
[1756319312771,9.93042666,4630.9,4630.8,0.02]
[1756319313481,7.77101921,4630.9,4630.8,0.1996]
[1756319313685,0.108,4630.9,4630.8,0.3119]
[1756319313981,8.82940745,4630.9,4630.8,0.1996]
[1756319314342,9.62140745,4630.9,4630.8,0.1996]
[1756319314641,9.62140745,4630.9,4630.8,0.02]
[1756319315737,9.62140745,4630.9,4630.8,0.1996]
[1756319316047,9.82207449,4630.9,4630.8,0.02]
[1756319316664,10.10707449,4630.9,4630.8,0.02]
[1756319316851,10.55657449,4630.9,4630.8,0.02]
[1756319317050,6.15207449,4630.9,4630.8,0.02]
[1756319317247,9.82207449,4630.9,4630.8,0.1996]
[1756319317662,10.55657449,4630.9,4630.8,0.02]
[1756319319055,10.82870896,4630.9,4630.8,0.02]
[1756319319238,17.68554967,4630.9,4630.8,0.02]
[1756319321841,14.66509167,4630.9,4630.8,0.02]
[1756319322180,18.33409167,4630.9,4630.8,0.02]
[1756319323277,18.33409167,4630.9,4630.8,0.021]
[1756319324778,18.60625095,4630.9,4630.8,0.021]
[1756319325284,18.33409167,4630.9,4630.8,0.021]
[1756319325680,18.60625095,4630.9,4630.8,0.021]
[1756319325869,2.95187386,4629.9,4629.8,0.02]
[1756319326071,7.72087386,4629.9,4629.8,0.02]
[1756319326391,11.48251609,4629.9,4629.8,0.1996]
[1756319326590,11.90729688,4629.9,4629.8,0.1996]
[1756319326743,11.91329688,4629.9,4629.8,0.1996]
[1756319327378,11.91429688,4629.9,4629.8,0.1996]
[1756319327550,11.91429688,4629.9,4629.8,0.02]
[1756319327980,12.66129688,4629.9,4629.8,0.02]
[1756319328290,12.35009688,4629.9,4629.8,0.02]
[1756319328990,11.91429688,4629.9,4629.8,0.02]
[1756319329289,12.66129688,4629.9,4629.8,0.02]
[1756319329602,3.792,4629.8,4627.8,0.02]
[1756319329761,13.07516369,4628.9,4627.8,0.02]
[1756319329953,18.92483331,4628.9,4627.8,0.02]
[1756319330153,19.36063331,4628.9,4627.8,0.02]
[1756319330367,19.47293331,4628.9,4627.8,0.02]
[1756319330662,19.811211,4628.9,4627.8,0.02]
[1756319331376,19.47297165,4628.9,4627.8,0.02]
[1756319332983,19.811222,4628.9,4627.8,0.02]
[1756319333183,11.94039877,4628.9,4627.8,0.1323]
[1756319333349,12.68739877,4628.9,4627.8,0.02]
[1756319333545,11.94639877,4628.9,4627.8,0.02]
[1756319333748,12.69339877,4628.9,4627.8,0.02]
[1756319335353,12.35514842,4628.9,4627.8,0.02]
[1756319335553,12.35614842,4628.9,4627.8,0.02]
[1756319335791,11.60914842,4628.9,4627.8,0.02]
[1756319336176,11.71714842,4628.9,4627.8,0.02]
[1756319336360,12.46414842,4628.9,4627.8,0.02]
[1756319336561,12.46388417,4628.9,4627.8,0.02]
[1756319336771,12.46188417,4628.9,4627.8,0.02]
[1756319337189,12.46088417,4628.9,4627.8,0.02]
[1756319337350,19.58988416,4628.9,4627.8,0.02]
[1756319337757,15.90988416,4628.9,4627.8,0.02]
[1756319337986,26.71170739,4628.9,4627.8,0.02]
[1756319338359,27.04995858,4628.9,4627.8,0.02]
[1756319338573,23.37095858,4628.9,4627.8,0.02]
[1756319338768,27.04995858,4628.9,4627.8,0.02]
[1756319339375,23.37095858,4628.9,4627.8,0.02]
[1756319339657,27.04995858,4628.9,4627.8,0.02]
[1756319340070,27.04977825,4628.9,4627.8,0.02]
[1756319340758,26.30177825,4628.9,4627.8,0.02]
[1756319340993,26.30177825,4628.9,4627.9,0.1123]
[1756319341184,9.54861456,4628.9,4628.8,0.1996]
[1756319341367,12.91325118,4628.9,4628.8,0.1996]
[1756319341558,18.97789164,4628.9,4628.8,0.2006]
[1756319341758,19.17798014,4628.9,4628.8,0.021]
[1756319341971,26.61200337,4628.9,4628.8,0.021]
[1756319342167,23.37080337,4628.9,4628.8,0.021]
[1756319342369,22.62380337,4628.9,4628.8,0.021]
[1756319342597,26.30480337,4628.9,4628.8,0.2006]
[1756319342770,19.18098014,4628.9,4628.8,0.2006]
[1756319343602,15.50098014,4628.9,4628.8,0.2006]
[1756319343895,19.18098014,4628.9,4628.8,0.2006]
[1756319344067,15.50098014,4628.9,4628.8,0.2006]
[1756319344268,19.18098014,4628.9,4628.8,0.2006]
[1756319344600,16.81955118,4628.9,4628.8,0.2006]
[1756319344785,3.44625119,4628.9,4628.8,0.3129]
[1756319345099,3.68,4629.1,4628.8,0.3129]
[1756319345301,3.788,4629.3,4628.9,2.27260488]
[1756319345511,6.788,4629.3,4629.2,0.1796]
[1756319345713,6.788,4629.3,4629.2,0.2919]
[1756319346124,2.15983044,4630.0,4629.2,0.2919]
[1756319346125,2.15879793,4632.3,4629.3,2.1601538]
[1756319346282,2.15879793,4632.3,4630.7,0.1796]
[1756319346283,0.108,4631.4,4630.7,0.1796]
[1756319346734,6.739,4630.8,4630.7,0.1796]
[1756319346912,6.739,4630.8,4630.7,0.2876]
[1756319346913,3.739,4630.8,4630.7,0.2876]
[1756319347116,3.739,4630.8,4630.7,0.1796]
[1756319347684,6.739,4630.8,4630.7,0.1796]
[1756319348020,3.739,4630.8,4630.7,0.1796]
[1756319348514,6.738,4630.8,4630.7,0.1796]
[1756319348715,3.738,4630.8,4630.7,0.1796]
[1756319348936,0.022,4630.8,4630.7,0.1796]
[1756319349248,3.738,4630.8,4630.7,0.1796]
[1756319349584,6.738,4630.8,4630.7,0.1796]
[1756319350295,3.792,4630.7,4629.9,0.1123]
[1756319350499,3.822,4630.6,4630.0,0.33522084]
[1756319350828,3.822,4630.6,4630.0,0.108]
[1756319351010,7.614,4630.6,4630.5,0.1796]
[1756319351214,3.9,4630.6,4630.5,0.1796]
[1756319353536,3.9,4630.6,4630.0,0.108]
[1756319353731,3.712,4630.5,4630.0,0.34601732]
[1756319353940,3.712,4630.5,4630.0,0.108]
[1756319354244,3.712,4630.5,4630.4,0.1796]
[1756319354539,3.709,4630.5,4630.4,0.1796]
[1756319355536,3.792,4630.4,4629.2,1.662]
[1756319355741,2.15980349,4630.1,4629.7,0.108]
[1756319356038,3.0,4630.2,4629.7,0.108]
[1756319356039,3.0,4629.9,4629.7,0.108]
[1756319356610,3.0,4629.9,4629.8,0.1796]
[1756319356841,0.108,4630.2,4629.8,0.42435596]
[1756319357015,3.0,4630.5,4629.9,2.27216629]
[1756319357348,3.0,4630.5,4630.4,0.1796]
[1756319357514,3.0,4630.5,4629.9,2.15986606]
[1756319357718,3.0,4630.3,4629.9,2.15986606]
[1756319357918,3.0,4630.3,4630.2,0.1796]
[1756319358429,3.0,4630.3,4629.7,0.108]
[1756319358629,3.705,4630.2,4629.8,2.15992051]
[1756319358806,3.705,4630.4,4630.1,0.1796]
[1756319359007,3.0,4630.3,4630.1,0.1796]
[1756319360243,0.002,4630.2,4630.1,0.1796]
[1756319360742,0.002,4630.2,4629.7,0.108]
[1756319360934,0.002,4630.2,4629.7,2.26792538]
[1756319361446,0.002,4630.2,4629.8,2.15991781]
[1756319361643,0.002,4630.2,4629.8,2.15992051]
[1756319361844,0.002,4630.2,4629.7,0.108]
[1756319362145,3.703,4630.1,4629.7,0.108]
[1756319362313,4.346,4630.0,4629.2,1.662]
[1756319362510,3.701,4629.9,4629.4,0.108]
[1756319362923,3.0,4630.0,4629.9,2.15983852]
[1756319363140,0.002,4630.2,4629.9,0.1796]
[1756319363553,0.002,4630.2,4629.9,2.33945115]
[1756319363707,0.002,4630.2,4629.9,0.1796]
[1756319364119,0.002,4630.2,4629.9,2.33946671]
[1756319364319,0.002,4630.2,4630.1,2.15978056]
[1756319364725,0.002,4630.2,4630.1,2.33938056]
[1756319365426,0.002,4630.2,4630.1,2.44738056]
[1756319365636,0.002,4630.2,4630.1,2.55968056]
[1756319366538,0.002,4630.2,4630.1,2.44738056]
[1756319366850,0.002,4630.2,4630.1,2.93257796]
[1756319370769,0.002,4630.2,4630.1,0.7727974]
[1756319370960,0.002,4630.2,4630.1,0.2876]
[1756319371131,0.002,4630.2,4630.1,2.44738056]
[1756319372062,0.00059147,4630.2,4630.1,2.44738056]
[1756319373433,0.00059147,4630.2,4630.1,0.108]
[1756319373854,0.30829147,4630.2,4630.1,0.108]
[1756319374031,0.75429147,4630.2,4629.9,3.692]
[1756319374232,0.446,4630.1,4629.9,3.692]
[1756319374550,0.30829147,4630.2,4629.8,0.108]
[1756319374551,0.7537,4630.0,4629.8,0.108]
[1756319375664,0.446,4630.0,4629.8,0.108]
[1756319375851,0.00059147,4630.2,4629.9,2.15987386]
[1756319376034,0.44659147,4630.2,4629.9,2.15987386]
[1756319376560,0.44659147,4630.2,4629.8,0.108]
[1756319376867,0.44659147,4630.2,4629.9,2.15985953]
[1756319377563,0.44659147,4630.2,4629.8,2.26791582]
[1756319377765,0.44659147,4630.2,4629.9,2.15986487]
[1756319378375,0.44659147,4630.2,4629.8,2.26891929]
[1756319378581,0.00059147,4630.2,4630.1,0.1796]
[1756319378731,0.00059147,4630.2,4630.1,2.44738056]
[1756319380058,0.00059147,4630.2,4630.1,0.108]
[1756319380360,0.00059147,4630.2,4630.1,2.26778056]
[1756319380578,0.00059147,4630.2,4630.1,2.44738056]
[1756319380736,0.00059147,4630.2,4630.1,3.30999202]
[1756319380938,0.00059147,4630.2,4630.1,6.99699202]
[1756319381840,0.00059147,4630.2,4630.1,6.82139202]
[1756319382170,0.00059147,4630.2,4630.1,7.00099202]
[1756319382530,0.75429147,4630.2,4630.1,3.798]
[1756319382948,0.00059147,4630.2,4630.1,3.798]
[1756319383472,0.00059147,4630.2,4630.1,5.95778056]
[1756319383647,0.00059147,4630.2,4630.1,6.13738056]
[1756319385472,0.30829147,4630.2,4630.1,2.26778056]
[1756319385675,0.30829147,4630.2,4630.1,5.95678056]
[1756319385884,0.00059147,4630.2,4630.1,5.95678056]
[1756319386753,0.30319147,4630.2,4630.1,3.797]
[1756319386953,0.74579147,4630.2,4630.1,5.95678056]
[1756319387477,0.74579147,4630.2,4630.1,3.797]
[1756319387872,0.74579147,4630.2,4630.1,5.95678056]
[1756319388479,0.74579147,4630.2,4630.1,5.95578056]
[1756319390380,0.00059147,4630.2,4630.1,5.95578056]
[1756319391181,0.00059147,4630.2,4630.1,6.13538056]
[1756319392774,0.00059147,4630.2,4630.1,5.95578056]
[1756319393375,0.00059147,4630.2,4630.1,3.796]
[1756319393571,0.00059147,4630.2,4630.1,5.95578056]
[1756319393771,0.00059147,4630.2,4630.1,6.94704493]
[1756319398194,0.00059147,4630.2,4630.1,6.94804493]
[1756319399984,0.74579147,4630.2,4630.1,0.109]
[1756319400301,0.74579147,4630.2,4630.1,3.786]
[1756319400500,0.74579147,4630.2,4630.1,0.109]
[1756319401196,0.74579147,4630.2,4630.1,2.26878056]
[1756319401378,0.30319147,4630.2,4630.1,2.26878056]
[1756319401577,0.00059147,4630.2,4630.1,3.2590432]
[1756319401900,0.00059147,4630.2,4630.1,5.053941]
[1756319402195,0.00059147,4630.2,4630.1,4.9200432]
[1756319402374,0.00059147,4630.2,4630.1,8.5990432]
[1756319402566,0.00059147,4630.2,4630.1,6.26066264]
[1756319402762,0.74579147,4630.2,4630.1,5.45]
[1756319403301,0.74579147,4630.2,4630.1,3.789]
[1756319403504,0.00059147,4630.2,4630.1,6.12838056]
[1756319403702,0.00059147,4630.2,4630.1,5.94878056]
[1756319404086,0.00059147,4630.2,4630.1,6.12838056]
[1756319404403,0.00059147,4630.2,4630.1,3.0977054]
[1756319404611,0.74579147,4630.2,4630.1,5.94878056]
[1756319404774,0.00059147,4630.2,4630.1,5.94878056]
[1756319404970,0.00059147,4630.2,4630.1,13.25120379]
[1756319405505,0.00059147,4630.2,4630.1,13.36350379]
[1756319406295,0.00059147,4630.2,4630.1,5.95178056]
[1756319406505,0.00059147,4630.2,4630.1,6.76304571]
[1756319406689,0.00059147,4630.2,4630.1,3.08004571]
[1756319406891,0.30319147,4630.2,4630.1,2.26878056]
[1756319407199,0.74579147,4630.2,4630.1,5.95178056]
[1756319407885,2.90552539,4630.2,4630.1,0.109]
[1756319408209,2.90552539,4630.2,4629.8,0.001]
[1756319408210,5.95187386,4629.9,4629.8,0.001]
[1756319408506,7.16712939,4629.9,4629.8,0.001]
[1756319408677,8.11927039,4629.9,4629.8,0.001]
[1756319408878,8.56187039,4629.9,4629.8,0.001]
[1756319409686,8.90001347,4629.9,4629.8,0.001]
[1756319410920,8.89963405,4629.9,4629.8,0.001]
[1756319411393,12.27463989,4629.9,4629.8,0.001]
[1756319411585,4.18856058,4629.9,4629.8,0.001]